bitfinex/quotes_ETHUSD_20260302
["timestamp","ask_amount","ask_price","bid_price","bid_amount"]
[1772467305879,0.002,2050.6,2050.2,6.12290493]
[1772467306251,2.31965579,2052.1,2050.5,2.66418281]
[1772467306452,4.87170623,2052.7,2050.9,3.90851929]
[1772467306680,1.86691621,2052.4,2051.1,3.90851929]
[1772467308395,1.21826421,2052.1,2051.0,2.21789974]
[1772467308622,1.21826421,2052.1,2050.7,3.86625433]
[1772467308623,0.21502099,2052.0,2050.7,3.86625433]
[1772467308752,3.1021654,2052.0,2050.7,5.08534849]
[1772467308958,2.88714441,2051.9,2050.7,5.08534849]
[1772467309178,3.98014441,2051.9,2050.7,3.86625433]
[1772467309490,1.093,2051.9,2050.7,3.86625433]
[1772467309652,1.093,2051.9,2050.7,5.08534986]
[1772467309851,2.8880003,2051.8,2050.7,5.08534986]
[1772467310066,3.11493297,2051.7,2050.6,0.999]
[1772467310274,1.98360355,2051.9,2050.7,3.86625433]
[1772467310465,4.10709184,2051.8,2050.7,5.08530776]
[1772467310684,1.21844234,2051.8,2050.7,3.86625433]
[1772467310884,1.21844234,2051.8,2050.6,2.2181101]
[1772467311253,2.88967781,2051.7,2050.6,2.2181101]
[1772467311456,3.98367781,2051.7,2050.6,2.21814885]
[1772467311663,1.21844234,2051.8,2050.6,6.08440318]
[1772467311869,1.21844234,2051.8,2050.7,3.86625433]
[1772467312487,2.31965579,2052.2,2050.9,3.86625433]
[1772467312687,1.21814549,2052.3,2051.1,3.86625433]
[1772467313087,1.86694816,2052.4,2051.1,3.86625433]
[1772467313864,4.87020893,2053.4,2051.5,2.66418281]
[1772467314061,4.86973459,2053.6,2051.7,3.86625433]
[1772467314574,4.86973459,2053.6,2051.9,3.86625433]
[1772467314775,4.86973459,2053.6,2052.1,3.86625433]
[1772467315371,20.45013993,2053.7,2052.1,3.86625433]
[1772467315588,0.19528368,2053.7,2053.1,3.86625433]
[1772467315795,0.19528368,2053.7,2052.3,0.14948499]
[1772467315796,0.19528368,2053.7,2053.0,1.0]
[1772467316004,0.19528368,2053.7,2053.2,3.86625433]
[1772467316309,4.86530897,2055.4,2053.4,2.2481433]
[1772467316461,4.86530897,2055.4,2053.8,3.86625433]
[1772467316660,4.86530897,2055.4,2053.9,7.67743345]
[1772467316867,4.86530897,2055.4,2053.9,4.86725433]
[1772467317091,4.86530897,2055.4,2054.1,3.86625433]
[1772467317293,4.06518196,2055.3,2054.4,2.2481433]
[1772467317509,0.065536,2055.1,2054.5,1.81752276]
[1772467317711,0.065536,2055.1,2054.1,2.2481433]
[1772467317910,0.14948499,2055.0,2054.2,2.2481433]
[1772467318206,0.14948499,2054.8,2053.7,4.37521495]
[1772467318409,0.002,2053.9,2053.2,3.37221495]
[1772467318586,0.002,2053.9,2052.7,8.45633712]
[1772467318908,0.15148499,2053.9,2052.7,3.86625433]
[1772467319206,1.25248499,2053.9,2052.4,3.86625433]
[1772467319576,1.25248499,2053.9,2051.9,7.23846928]
[1772467319577,0.14948499,2053.5,2051.9,7.23846928]
[1772467319876,0.14948499,2053.3,2051.9,3.86625433]
[1772467320080,0.14948499,2053.3,2051.6,4.37621495]
[1772467320281,4.21466695,2053.1,2051.6,1.004]
[1772467320473,0.14948499,2052.9,2051.6,1.004]
[1772467320682,2.31773015,2053.0,2051.6,2.22255605]
[1772467320878,1.21773015,2053.0,2051.7,3.86625433]
[1772467321099,0.14948499,2052.9,2051.4,1.21864489]
[1772467321372,0.14948499,2052.9,2051.3,5.0849586]
[1772467321591,0.14948499,2052.7,2051.3,7.23846928]
[1772467321771,0.14948499,2052.7,2051.3,5.08499216]
[1772467321975,0.14948499,2052.5,2051.2,3.37221495]
[1772467322193,0.14948499,2052.5,2051.1,1.004]
[1772467322498,0.14948499,2052.5,2050.6,4.87661039]
[1772467322499,1.21820485,2052.2,2050.5,5.59640266]
[1772467322677,0.14948499,2052.0,2050.5,4.37721495]
[1772467322887,0.14948499,2052.0,2050.3,8.45779348]
[1772467322888,5.98324951,2051.8,2050.3,8.45779348]
[1772467323197,5.98324951,2051.8,2049.7,2.924]
[1772467323198,0.14948499,2051.1,2049.5,5.63365108]
[1772467323512,1.101,2051.5,2049.5,3.86625433]
[1772467323805,4.14913095,2051.4,2049.5,3.86625433]
[1772467324189,3.99964596,2051.0,2049.4,1.005]
[1772467324509,0.065536,2051.3,2049.1,0.001]
[1772467324510,0.065536,2050.8,2049.1,0.001]
[1772467324712,3.99964596,2050.2,2049.1,0.001]
[1772467325020,3.99964596,2050.2,2048.9,0.001]
[1772467325021,3.99964596,2050.1,2048.9,0.001]
[1772467325307,3.99964596,2049.7,2048.9,0.001]
[1772467325612,1.102,2049.6,2048.9,0.001]
[1772467325775,3.99964596,2049.6,2048.9,0.001]
[1772467325977,1.102,2049.5,2048.9,0.001]
[1772467326185,1.102,2050.0,2048.9,0.001]
[1772467326377,3.99964596,2050.2,2048.9,1.22115962]
[1772467326576,2.3214527,2050.1,2048.9,0.001]
[1772467326912,1.2189176,2051.0,2049.3,3.86625433]
[1772467327211,1.2189176,2051.0,2049.5,3.86625433]
[1772467327374,1.2189176,2051.0,2049.6,4.87525433]
[1772467327580,4.87440118,2051.6,2049.7,3.86625433]
[1772467328007,3.94964596,2051.5,2049.8,1.009]
[1772467328199,1.104,2051.4,2049.8,1.009]
[1772467328399,5.10364596,2051.4,2049.8,1.009]
[1772467328714,1.21879875,2051.2,2049.8,2.22857495]
[1772467328889,1.21879875,2051.2,2049.9,3.86625433]
[1772467329617,1.21879875,2051.2,2050.0,2.81361397]
[1772467329804,1.21879875,2051.2,2049.8,2.22857495]
[1772467329805,1.21879875,2051.2,2049.8,1.009]
[1772467330006,1.106,2051.1,2049.9,2.81445705]
[1772467330305,1.25548499,2051.0,2049.8,1.009]
[1772467330629,1.21903647,2050.8,2049.8,1.009]
[1772467330927,1.21903647,2050.8,2049.3,0.001]
[1772467330928,4.14913095,2050.7,2049.3,0.001]
[1772467331138,0.14948499,2050.5,2049.3,0.001]
[1772467331623,1.106,2050.4,2049.3,0.001]
[1772467331809,4.14913095,2050.3,2049.3,0.001]
[1772467331985,4.14913095,2050.3,2049.0,0.001]
[1772467332316,4.14913095,2049.8,2048.9,0.001]
[1772467332519,3.99964596,2049.8,2048.9,0.001]
[1772467332821,0.14948499,2049.5,2048.9,0.001]
[1772467333116,1.21975019,2049.6,2048.9,0.001]
[1772467333493,0.14948499,2049.5,2048.9,0.001]
[1772467333897,1.21975019,2049.6,2048.9,0.001]
[1772467334097,1.105,2049.4,2048.9,0.001]
[1772467334296,1.106,2049.3,2048.9,0.001]
[1772467334530,1.21975019,2049.6,2048.9,0.001]
[1772467334730,4.87900078,2049.7,2048.9,0.001]
[1772467335227,9.52285906,2049.7,2048.9,0.001]
[1772467335416,0.14948499,2049.5,2048.9,0.001]
[1772467335592,0.14948499,2049.1,2047.3,4.79713975]
[1772467335799,1.105,2049.0,2047.4,4.88402885]
[1772467336045,1.105,2048.9,2047.4,4.88402885]
[1772467336211,1.105,2049.5,2047.5,4.79713975]
[1772467336819,1.21986923,2049.4,2047.7,4.79713975]
[1772467337037,0.21502099,2049.8,2047.9,4.79713975]
[1772467337038,1.105,2049.8,2047.9,4.79713975]
[1772467337248,1.105,2050.1,2048.3,4.79713975]
[1772467337400,4.87724194,2050.4,2048.6,4.53272701]
[1772467337730,4.87724194,2050.4,2048.7,5.53872701]
[1772467337895,1.90475787,2050.3,2048.7,4.53272701]
[1772467338097,4.87724194,2050.4,2048.7,4.53272701]
[1772467338424,1.21897703,2050.9,2049.0,4.53272701]
[1772467338629,1.21897703,2050.9,2049.2,4.53272701]
[1772467338839,4.87590813,2051.0,2049.4,4.53272701]
[1772467339021,1.105,2051.2,2049.4,4.53272701]
[1772467339229,4.87565269,2051.1,2049.4,4.53272701]
[1772467340425,0.14948499,2051.0,2049.4,4.53272701]
[1772467340642,4.86206397,2051.0,2049.3,1.21992875]
[1772467340795,0.14948499,2050.8,2049.3,1.21992875]
[1772467340996,1.105,2050.7,2049.3,1.21992875]
[1772467341216,1.105,2050.7,2049.2,5.88471502]
[1772467341217,4.86206397,2050.6,2049.2,1.005]
[1772467341490,4.86206397,2050.6,2048.5,2.22540517]
[1772467341891,1.21897703,2050.9,2049.0,4.53272701]
[1772467342103,1.21897703,2050.9,2049.2,4.59826301]
[1772467342303,4.71257898,2050.8,2048.6,4.59826301]
[1772467342525,1.21897703,2050.9,2048.8,4.53272701]
[1772467342722,1.105,2050.9,2049.2,4.53272701]
[1772467343193,4.87590813,2051.0,2049.2,4.53272701]
[1772467343591,4.87590813,2051.0,2049.4,4.53272701]
[1772467343911,4.87590813,2051.0,2049.5,1.005]
[1772467344227,4.87590813,2051.0,2049.5,5.53772701]
[1772467344822,0.14948499,2050.9,2049.5,1.005]
[1772467345004,0.14948499,2050.9,2049.5,2.22479959]
[1772467345200,1.25248499,2051.0,2049.5,2.22479959]
[1772467345527,0.002,2050.8,2049.5,2.22479959]
[1772467345941,0.002,2050.8,2049.5,6.7575266]
[1772467346239,0.002,2050.8,2049.6,4.53272701]
[1772467347131,0.002,2050.8,2049.7,5.75241769]
[1772467348734,0.002,2050.8,2049.6,1.006]
[1772467348922,0.002,2050.8,2049.6,2.22574804]
[1772467350009,0.002,2050.8,2049.3,1.21988803]
[1772467350010,4.71257898,2050.7,2049.3,1.21988803]
[1772467350241,0.002,2050.8,2048.8,10.41960296]
[1772467350242,0.14948499,2050.4,2048.8,10.41960296]
[1772467350463,0.21502099,2050.1,2048.4,5.88866536]
[1772467350606,4.86206397,2049.9,2048.4,1.007]
[1772467350928,0.14948499,2049.7,2048.3,1.22052238]
[1772467351132,1.21975019,2049.6,2048.3,1.22052238]
[1772467351336,2.31975019,2049.6,2048.3,1.22052238]
[1772467351512,2.31975019,2049.6,2048.3,5.75324939]
[1772467351708,2.31975019,2049.6,2048.0,1.007]
[1772467351709,0.14948499,2049.5,2048.0,1.007]
[1772467351922,4.86206397,2049.5,2047.9,0.001]
[1772467352127,0.14948499,2048.9,2047.9,0.001]
[1772467352307,1.101,2048.9,2047.9,0.001]
[1772467352507,4.71257898,2049.0,2047.9,1.22175315]
[1772467352704,1.101,2048.9,2047.9,1.22175315]
[1772467352902,1.101,2049.1,2047.9,1.22175315]
[1772467353204,0.14948499,2049.3,2048.0,1.008]
[1772467353408,4.86206397,2049.1,2047.9,0.001]
[1772467353610,0.14948499,2048.9,2047.9,0.001]
[1772467354005,1.101,2048.8,2047.9,0.001]
[1772467354316,0.14948499,2048.7,2047.9,0.001]
[1772467354515,1.101,2048.6,2047.9,0.001]
[1772467355206,2.32140517,2048.5,2047.9,0.001]
[1772467355409,1.22040517,2048.5,2047.9,0.001]
[1772467356033,1.22040517,2048.5,2047.7,0.001]
[1772467357215,4.88162069,2048.6,2047.7,0.001]
[1772467357216,9.59419967,2048.6,2047.7,0.001]
[1772467357909,1.102,2048.5,2047.7,0.001]
[1772467358106,1.102,2048.4,2047.7,0.001]
[1772467358513,4.88162069,2048.6,2047.7,0.001]
[1772467358943,4.86206397,2048.5,2047.7,0.001]
[1772467359314,4.86206397,2048.3,2047.7,0.001]
[1772467359514,4.86206397,2048.1,2047.1,0.001]
[1772467359721,4.71257898,2047.7,2047.1,0.001]
[1772467359940,2.57572521,2047.9,2047.1,0.001]
[1772467360319,1.103,2047.8,2047.1,0.001]
[1772467360515,5.81557898,2047.8,2047.1,0.001]
[1772467360944,4.71257898,2047.8,2047.1,0.001]
[1772467361453,4.71257898,2048.2,2047.1,0.001]
[1772467361655,5.81457898,2047.9,2047.1,0.001]
[1772467361823,0.14948499,2047.8,2047.1,0.001]
[1772467362020,4.71257898,2047.5,2046.7,0.001]
[1772467362223,0.14948499,2047.3,2046.7,0.001]
[1772467362823,1.103,2047.4,2046.7,0.001]
[1772467363028,4.71257898,2047.3,2046.6,0.001]
[1772467363226,1.2214188,2046.8,2045.6,0.001]
[1772467363529,1.2214188,2046.8,2045.6,4.53372701]
[1772467363934,2.3234188,2046.8,2045.6,4.53372701]
[1772467364435,2.3234188,2046.8,2045.6,0.001]
[1772467364627,4.86206397,2046.7,2045.6,0.001]
[1772467364944,4.86206397,2046.5,2045.4,0.001]
[1772467365142,0.14948499,2046.3,2045.4,0.001]
[1772467365462,2.32377695,2046.2,2045.4,0.001]
[1772467365646,4.86206397,2046.1,2045.4,0.001]
[1772467366471,4.71257898,2045.9,2045.1,0.001]
[1772467366624,0.14948499,2045.8,2045.1,0.001]
[1772467366822,0.14948499,2045.8,2044.6,0.001]
[1772467367061,0.14948499,2045.6,2044.6,0.001]
[1772467367357,1.103,2045.5,2044.6,0.001]
[1772467367772,0.14948499,2045.4,2044.6,0.001]
[1772467368135,4.7890356,2045.4,2044.2,0.001]
[1772467368652,0.14948499,2045.2,2044.2,0.001]
[1772467368825,4.63955061,2045.4,2044.2,0.001]
[1772467369034,1.22207557,2045.7,2044.2,1.22395676]
[1772467369266,1.102,2045.6,2044.4,4.87901933]
[1772467369554,2.32389638,2046.0,2044.6,4.87801933]
[1772467369738,1.22189638,2046.0,2044.6,4.87801933]
[1772467369943,1.22188093,2046.1,2044.8,4.87801933]
[1772467370150,1.22181472,2046.2,2044.8,4.87801933]
[1772467370331,2.32375961,2046.3,2044.8,4.87801933]
[1772467370530,1.22147847,2046.7,2045.2,4.87801933]
[1772467371331,1.22147847,2046.7,2045.4,4.87801933]
[1772467371667,5.98891391,2046.8,2045.6,4.87801933]
[1772467371668,1.22146341,2046.8,2045.6,4.87801933]
[1772467373088,1.103,2046.7,2045.6,4.87801933]
[1772467373525,1.22153816,2046.6,2045.7,1.22207557]
[1772467373730,7.29412864,2047.3,2045.8,4.87801933]
[1772467373731,1.2212398,2047.2,2045.8,4.87801933]
[1772467374046,1.102,2047.1,2045.8,4.87801933]
[1772467374250,1.2212398,2047.2,2045.8,4.87801933]
[1772467374465,1.22103331,2047.5,2046.2,2.67872774]
[1772467374695,1.22103331,2047.5,2046.2,7.55674707]
[1772467374848,1.22094159,2047.6,2046.3,4.87801933]
[1772467375183,4.88247083,2048.2,2046.8,4.87801933]
[1772467375678,1.22058392,2048.3,2046.9,4.87801933]
[1772467375841,1.104,2048.2,2046.9,4.87801933]
[1772467376661,1.104,2048.2,2046.8,2.22238651]
[1772467376662,0.14948499,2048.1,2046.8,2.22238651]
[1772467376863,1.103,2048.0,2046.8,7.10040584]
[1772467377267,0.002,2047.0,2046.8,7.10040584]
[1772467377470,1.37006891,2048.3,2046.8,7.10040584]
[1772467377471,1.103,2047.9,2046.8,7.10040584]
[1772467377976,1.103,2047.9,2046.9,4.87801933]
[1772467378474,1.22046475,2048.4,2046.9,4.87801933]
[1772467378680,4.7890356,2048.3,2046.8,2.22338651]
[1772467379551,2.32258392,2048.2,2046.8,7.10140584]
[1772467379771,2.32258392,2048.2,2046.8,2.22338651]
[1772467379977,1.22058392,2048.2,2046.9,4.87801933]
[1772467380173,1.102,2048.1,2046.8,1.002]
[1772467380485,4.7890356,2048.0,2046.4,7.10063004]
[1772467380804,1.102,2048.1,2046.0,4.87801933]
[1772467380805,4.7890356,2047.5,2046.0,4.87801933]
[1772467380952,4.7890356,2047.2,2045.9,1.002]
[1772467381272,0.14948499,2046.9,2045.5,2.22416078]
[1772467381455,1.102,2046.8,2045.5,2.22416078]
[1772467381663,1.22147847,2046.7,2045.5,1.22216078]
[1772467382284,1.102,2046.6,2045.5,1.22216078]
[1772467382652,1.2212398,2047.1,2045.6,4.87801933]
[1772467382883,1.2212398,2047.1,2045.7,1.002]
[1772467383261,1.2212398,2047.1,2045.6,4.87801933]
[1772467383469,0.14948499,2047.0,2045.6,5.88001933]
[1772467383654,2.32435912,2046.9,2045.7,1.22207557]
[1772467383987,1.22135912,2046.9,2045.7,6.1000949]
[1772467384165,2.32435912,2046.9,2045.7,6.1000949]
[1772467384492,1.103,2047.1,2045.8,4.87801933]
[1772467384997,1.103,2047.1,2045.6,1.22209748]
[1772467384998,0.14948499,2047.0,2045.6,1.22209748]
[1772467385171,0.14948499,2047.0,2045.3,6.10032703]
[1772467385172,4.7890356,2047.0,2045.3,6.10032703]
[1772467385362,0.14948499,2046.7,2045.3,6.10033019]
[1772467385572,1.22153816,2046.6,2045.3,6.10033019]
[1772467385876,2.32453816,2046.6,2045.4,4.87801933]
[1772467386188,2.32453816,2046.6,2045.3,1.22231086]
[1772467386360,4.7890356,2046.5,2045.0,4.88981468]
[1772467386859,1.103,2046.4,2045.1,4.87801933]
[1772467387052,2.32453816,2046.6,2045.3,4.87801933]
[1772467387286,2.32429946,2047.0,2045.4,5.88201933]
[1772467387487,4.88422025,2047.5,2046.1,4.87801933]
[1772467387790,4.63955061,2047.3,2045.8,1.22196473]
[1772467387954,4.63955061,2047.3,2045.7,1.22205163]
[1772467388158,0.14948499,2047.0,2045.6,7.10415252]
[1772467388464,1.103,2046.9,2045.6,7.10414606]
[1772467388660,1.103,2046.8,2045.6,7.10414606]
[1772467389088,4.63955061,2047.1,2045.6,7.10414606]
[1772467389384,1.103,2046.8,2045.7,4.87801933]
[1772467389785,1.22147847,2046.7,2045.8,1.22201583]
[1772467389963,0.002,2046.8,2045.8,1.22201583]
[1772467390168,0.002,2046.8,2045.9,4.87801933]
[1772467390169,1.22342495,2046.8,2045.9,4.87801933]
[1772467390351,0.002,2046.8,2045.9,4.87801933]
[1772467390556,0.002,2047.0,2045.9,4.87801933]
[1772467390885,0.002,2047.0,2046.3,4.87801933]
[1772467391089,1.101,2048.1,2046.5,4.87801933]
[1772467391291,0.002,2047.3,2046.7,4.87801933]
[1772467391461,0.002,2047.3,2046.8,1.004]
[1772467391662,0.002,2047.3,2047.0,1.22129946]
[1772467391861,0.002,2047.3,2046.8,1.004]
[1772467392081,1.101,2047.9,2046.8,1.004]
[1772467392394,1.22028603,2048.7,2047.0,4.87801933]
[1772467393064,1.22028603,2048.7,2047.2,4.87801933]
[1772467393268,1.22028603,2048.7,2047.3,1.005]
[1772467393468,1.22028603,2048.7,2047.2,4.87801933]
[1772467393666,4.88113657,2048.8,2047.4,1.22106085]
[1772467393870,2.89309449,2048.7,2047.4,1.22106085]
[1772467394089,4.88113657,2048.8,2047.4,1.22106085]
[1772467394394,0.14948499,2048.7,2047.3,1.005]
[1772467394697,0.14948499,2048.4,2046.9,1.004]
[1772467394892,1.1,2048.3,2046.9,1.004]
[1772467395091,7.68304321,2048.2,2046.8,1.2214188]
[1772467395386,4.79166251,2048.2,2046.4,1.004]
[1772467395593,7.53379135,2048.1,2046.4,1.004]
[1772467395781,1.1,2048.3,2046.4,1.004]
[1772467395782,2.28476308,2048.4,2046.4,5.50602496]
[1772467395987,4.88144642,2048.6,2047.0,4.50202496]
[1772467396201,4.88144642,2048.6,2047.1,5.50602496]
[1772467396494,3.03978636,2048.5,2047.1,1.004]
[1772467396662,9.52362394,2048.6,2047.1,1.004]
[1772467397196,2.89025196,2048.5,2047.1,5.50602496]
[1772467397411,4.88144642,2048.6,2047.1,5.50602496]
[1772467397772,2.89187689,2048.5,2047.1,5.50602496]
[1772467397970,1.22046475,2048.4,2047.2,1.22118014]
[1772467398169,1.22046475,2048.4,2047.1,2.22520691]
[1772467398772,1.1,2048.7,2047.2,4.41788134]
[1772467399688,2.8969904,2048.6,2047.2,4.41788134]
[1772467400075,1.22040517,2048.5,2047.3,1.2211205]
[1772467400275,1.22040517,2048.5,2047.4,4.41788134]
[1772467400708,5.97965191,2049.0,2047.4,4.41788134]
[1772467400895,2.89710173,2048.9,2047.4,4.41788134]
[1772467401095,2.89710173,2048.9,2047.5,1.003]
[1772467401889,4.67262707,2048.8,2047.2,2.22313993]
[1772467402202,1.2203456,2048.6,2047.3,4.41788134]
[1772467402414,1.099,2048.5,2047.3,4.41788134]
[1772467402777,1.2203456,2048.6,2047.3,4.41788134]
[1772467403072,1.098,2048.8,2047.3,4.41788134]
[1772467403478,1.22003011,2049.2,2047.5,4.41788134]
[1772467404170,1.22003011,2049.2,2047.7,4.41788134]
[1772467404371,1.22003011,2049.2,2047.8,5.42088134]
[1772467404372,0.002,2048.9,2047.8,5.42088134]
[1772467404577,5.97983369,2049.3,2047.8,5.42088134]
[1772467404578,0.002,2049.3,2047.9,4.41788134]
[1772467404778,1.22193318,2049.3,2048.1,4.41788134]
[1772467405089,0.002,2049.1,2048.1,4.41788134]
[1772467405597,0.002,2049.1,2048.1,1.003]
[1772467406185,0.002,2049.1,2048.2,1.22058392]
[1772467406408,0.002,2049.1,2048.2,5.63846526]
[1772467406613,0.002,2049.3,2048.3,4.41788134]
[1772467406910,0.002,2049.3,2048.4,1.004]
[1772467407583,0.002,2049.3,2048.4,5.42188134]
[1772467408149,0.002,2049.3,2048.4,4.41788134]
[1772467408413,0.002,2049.3,2048.5,1.004]
[1772467408830,0.002,2049.3,2048.6,1.2203456]
[1772467409321,0.002,2049.3,2048.7,4.41788134]
[1772467409481,0.002,2049.4,2048.7,4.41788134]
[1772467409682,0.002,2049.5,2048.7,4.41788134]
[1772467410499,0.002,2049.5,2048.8,1.004]
[1772467411213,0.002,2049.5,2048.4,4.88178184]
[1772467411214,0.002,2049.5,2048.4,2.22442032]
[1772467411516,4.52514208,2049.5,2048.0,4.75387823]
[1772467411917,4.52514208,2049.5,2048.0,2.22468435]
[1772467412121,4.52314208,2049.3,2048.0,1.004]
[1772467412290,4.52314208,2049.3,2048.0,2.22469602]
[1772467412692,1.21998828,2049.2,2048.0,2.22469602]
[1772467412917,2.31598828,2049.2,2048.0,2.22469602]
[1772467413317,1.21998828,2049.2,2048.0,6.64257736]
[1772467413514,0.002,2049.5,2048.1,4.41788134]
[1772467413719,1.22185551,2049.5,2048.3,4.41788134]
[1772467413915,1.22185551,2049.5,2048.0,1.22069602]
[1772467414122,2.31785551,2049.5,2048.1,5.42188134]
[1772467414425,1.22185551,2049.5,2048.1,5.42188134]
[1772467414999,0.002,2049.5,2048.3,4.41788134]
[1772467415397,0.002,2049.5,2048.4,1.005]
[1772467416228,4.52514208,2049.5,2048.4,1.005]
[1772467417325,1.21986923,2049.4,2048.4,2.22541893]
[1772467417518,1.097,2049.3,2048.4,2.22545515]
[1772467418229,2.317854,2049.5,2048.5,4.41788134]
[1772467418531,0.002,2049.5,2048.5,4.41788134]
[1772467419031,0.002,2051.3,2049.4,2.67442469]
[1772467419211,4.52514208,2051.3,2049.6,5.63763153]
[1772467419594,4.52314208,2051.2,2049.7,1.006]
[1772467419800,0.002,2051.3,2049.7,1.006]
[1772467419801,0.002,2051.3,2049.7,5.42388134]
[1772467420000,0.002,2051.3,2050.0,4.41788134]
[1772467420231,0.002,2051.3,2050.2,4.41788134]
[1772467420428,3.42714462,2052.3,2050.7,4.41788134]
[1772467420429,1.21815501,2052.3,2050.7,4.41788134]
[1772467420597,1.21815501,2052.3,2050.9,4.41788134]
[1772467420806,4.52314208,2052.2,2050.4,4.41788134]
[1772467421116,1.21838296,2051.9,2050.7,2.2270912]
[1772467421318,4.52314208,2051.8,2050.2,1.21934768]
[1772467421518,4.52314208,2051.6,2050.2,1.21934768]
[1772467421735,1.1,2051.5,2050.2,1.21934768]
[1772467422027,3.88430153,2051.9,2050.3,4.41788134]
[1772467422327,4.52314208,2051.8,2050.4,1.008]
[1772467422830,3.88430153,2051.9,2050.4,1.008]
[1772467422831,1.21838296,2051.9,2050.4,5.42588134]
[1772467423027,1.21820485,2052.2,2050.4,5.42588134]
[1772467423235,1.21808614,2052.4,2050.6,4.41788134]
[1772467423434,1.21808614,2052.4,2051.0,4.41788134]
[1772467423605,1.21808614,2052.4,2051.1,5.42488134]
[1772467424302,0.002,2052.5,2051.1,5.42488134]
[1772467424506,1.22003334,2052.5,2051.3,4.41788134]
[1772467424720,1.22003334,2052.5,2051.4,1.007]
[1772467424915,1.22003348,2052.5,2051.5,1.007]
[1772467425120,0.002,2052.5,2051.6,1.21856112]
[1772467425321,0.002,2052.5,2051.5,1.008]
[1772467425626,0.002,2052.5,2051.2,2.22577254]
[1772467425813,4.52514208,2052.5,2051.2,2.22577254]
[1772467426014,0.065536,2052.4,2050.8,9.29395846]
[1772467426219,5.62214208,2052.3,2050.9,2.22597703]
[1772467426507,0.002,2052.5,2051.0,4.41788134]
[1772467427198,0.002,2052.5,2051.2,4.41788134]
[1772467427922,0.002,2052.7,2051.6,4.61948298]
[1772467428123,0.002,2052.7,2051.8,4.61948298]
[1772467428432,0.002,2052.7,2051.9,1.007]
[1772467428927,0.002,2052.7,2051.8,1.007]
[1772467429135,0.002,2052.7,2051.7,1.21850173]
[1772467429340,0.002,2052.7,2051.9,1.007]
[1772467430214,0.002,2052.7,2051.7,1.21850173]
[1772467430536,0.002,2052.7,2051.6,2.22454708]
[1772467431132,0.002,2052.7,2051.6,6.84403006]
[1772467431329,0.002,2052.7,2051.7,4.61948298]
[1772467431706,0.002,2052.7,2051.6,2.22454708]
[1772467432107,0.002,2052.7,2051.6,6.84403006]
[1772467432301,0.002,2052.5,2051.6,6.84403006]
[1772467433634,0.002,2052.5,2051.6,2.22454708]
[1772467433812,0.002,2052.5,2051.6,2.22554708]
[1772467435118,4.63668621,2052.5,2050.8,4.61948298]
[1772467435449,4.63468621,2052.3,2050.9,1.007]
[1772467436707,4.63468621,2052.1,2050.4,4.61948298]
[1772467436910,0.14948499,2052.2,2050.4,4.61948298]
[1772467436911,4.63468621,2051.9,2050.4,4.61948298]
[1772467437247,4.63468621,2051.2,2049.8,1.21963118]
[1772467437457,1.43364151,2051.5,2049.7,1.21964334]
[1772467437458,4.63468621,2051.0,2049.7,1.21964334]
[1772467438010,5.72568621,2051.0,2049.7,1.21964334]
[1772467438245,5.72568621,2051.0,2049.6,1.21971453]
[1772467438546,5.72568621,2051.0,2049.5,1.005]
[1772467438547,5.72568621,2051.0,2049.5,2.22476588]
[1772467439243,1.21897703,2050.9,2049.5,2.22476588]
[1772467439814,2.30897703,2050.9,2049.5,2.22476588]
[1772467440509,4.63468621,2050.8,2049.5,2.22480585]
[1772467440712,4.63468621,2050.6,2049.2,1.2199543]
[1772467440945,1.21897703,2050.9,2049.2,5.83943728]
[1772467441134,2.30897703,2050.9,2049.2,5.83943728]
[1772467441329,2.30897703,2050.9,2049.3,4.61948298]
[1772467441641,1.21897703,2050.9,2049.3,4.61948298]
[1772467441966,1.21873933,2051.3,2049.6,4.61948298]
[1772467442245,1.21873933,2051.3,2049.7,5.62348298]
[1772467442246,5.85342554,2051.3,2049.7,5.62348298]
[1772467442844,4.87430573,2051.6,2049.9,4.61948298]
[1772467443048,1.21856112,2051.6,2049.9,4.61948298]
[1772467443217,3.90300854,2051.9,2050.3,4.61948298]
[1772467443417,3.90300854,2051.9,2050.2,1.21939322]
[1772467443418,4.63468621,2051.8,2050.2,1.21939322]
[1772467443617,4.63468621,2051.8,2050.3,1.004]
[1772467443846,4.63468621,2051.6,2050.2,1.21939322]
[1772467444144,4.63468621,2051.2,2049.7,1.005]
[1772467444450,0.21502099,2051.5,2049.7,1.005]
[1772467444451,5.72368621,2051.1,2049.7,1.005]
[1772467444817,5.72368621,2051.1,2049.8,0.001]
[1772467445350,4.63468621,2050.7,2049.8,0.001]
[1772467445966,1.089,2050.8,2049.8,0.001]
[1772467446143,5.85360381,2051.0,2049.8,0.001]
[1772467446465,1.088,2050.9,2049.8,0.001]
[1772467446666,4.63468621,2050.9,2049.8,0.001]
[1772467446869,1.089,2050.8,2049.8,0.001]
[1772467447247,1.21909591,2050.7,2049.8,0.001]
[1772467447645,4.63468621,2050.6,2049.8,0.001]
[1772467448169,4.63468621,2050.6,2049.5,0.001]
[1772467448590,4.63468621,2051.0,2049.5,4.62048298]
[1772467448741,1.21902076,2050.9,2049.6,4.61948298]
[1772467448939,5.85370697,2050.9,2049.5,0.001]
[1772467449169,0.065536,2051.4,2049.5,0.001]
[1772467449170,1.21879875,2051.2,2049.6,4.61948298]
[1772467449491,1.21879875,2051.2,2049.8,4.61948298]
[1772467449492,5.85348496,2051.2,2049.8,4.61948298]
[1772467449640,4.63468621,2052.1,2050.3,4.61948298]
[1772467449984,4.63468621,2051.7,2050.3,1.003]
[1772467450150,0.065536,2051.4,2050.3,1.003]
[1772467450357,2.68457988,2051.8,2050.3,5.62248298]
[1772467450952,1.091,2051.9,2050.3,5.62248298]
[1772467451154,5.85300979,2052.0,2050.3,5.62248298]
[1772467451350,5.85300979,2052.0,2050.4,1.21927428]
[1772467451351,4.63468621,2051.9,2050.4,1.21927428]
[1772467451555,4.63468621,2051.5,2050.2,4.87750941]
[1772467451873,1.09,2051.4,2050.2,4.87750941]
[1772467452051,4.63468621,2051.5,2050.2,4.87750941]
[1772467452249,5.72468621,2051.5,2050.2,4.87750941]
[1772467452456,1.09,2051.7,2050.3,4.61948298]